fUSD/lending_fUSD_20251212
["ID","MTS","AMOUNT","RATE_DAILY","PERIOD"]
[398327103,1765537929050,-500.0,0.0003863,30]
[398327104,1765537929060,-500.0,0.0003863,30]
[398327105,1765537929071,-500.0,0.0003863,30]
[398327106,1765537929081,-500.0,0.0003863,30]
[398327107,1765537929091,-500.0,0.0003863,30]
[398327108,1765537929102,-1065.82,0.0003863,30]
[398327109,1765537929112,-500.0,0.0003863,30]
[398327110,1765537929123,-2027.17,0.0003863,30]
[398327111,1765537929132,-500.0,0.0003863,30]
[398327112,1765537929145,-500.0,0.0003863,30]
[398327113,1765537929155,-500.0,0.0003863,30]
[398327114,1765537929165,-500.0,0.0003863,30]
[398327115,1765537929179,-500.0,0.0003863,30]
[398327116,1765537929190,-500.0,0.0003863,30]
[398327117,1765537929199,-500.0,0.0003863,30]
[398327118,1765537929209,-500.0,0.0003863,30]
[398327119,1765537929219,-663.04,0.0003863,30]
[398327120,1765537929228,-500.0,0.0003863,30]
[398327121,1765537929238,-500.0,0.0003863,30]
[398327122,1765537929248,-500.0,0.0003863,30]
[398327123,1765537929257,-500.0,0.0003863,30]
[398327124,1765537929267,-500.0,0.0003863,30]
[398327125,1765537929276,-500.0,0.0003863,30]
[398327126,1765537929286,-500.0,0.0003863,30]
[398327127,1765537929295,-500.0,0.0003863,30]
[398327128,1765537929305,-500.0,0.0003863,30]
[398327129,1765537929314,-500.0,0.0003863,30]
[398327130,1765537929324,-500.0,0.0003863,30]
[398327131,1765537929333,-500.0,0.0003863,30]
[398327132,1765537929343,-500.0,0.0003863,30]
[398327133,1765537929352,-500.0,0.0003863,30]
[398327134,1765537929362,-1034.23,0.0003863,30]
[398327135,1765537929372,-1526.42,0.0003863,30]
[398327136,1765537929382,-500.0,0.0003863,30]
[398327137,1765537929391,-500.0,0.0003863,30]
[398327138,1765537929401,-500.0,0.0003863,30]
[398327139,1765537929412,-500.0,0.0003863,30]
[398327140,1765537929422,-500.0,0.0003863,30]
[398327141,1765537929432,-604.96,0.0003863,30]
[398327142,1765537929442,-500.0,0.0003863,30]
[398327143,1765537929451,-500.0,0.0003863,30]
[398327144,1765537929461,-500.0,0.0003863,30]
[398327145,1765537929470,-497.58296533,0.0003863,30]
[398327146,1765537929480,-500.0,0.0003863,30]
[398327147,1765537929489,-500.0,0.0003863,30]
[398327148,1765537929499,-500.0,0.0003863,30]
[398327149,1765537929508,-500.0,0.0003863,30]
[398327150,1765537929517,-500.0,0.0003863,30]
[398327151,1765537929527,-500.0,0.0003863,30]
[398327152,1765537929536,-500.0,0.0003863,30]
[398327153,1765537929546,-500.0,0.0003863,30]
[398327154,1765537929555,-500.0,0.0003863,30]
[398327155,1765537929564,-500.0,0.0003863,30]
[398327156,1765537929574,-500.0,0.0003863,30]
[398327157,1765537929584,-500.0,0.0003863,30]
[398327158,1765537929594,-500.0,0.0003863,30]
[398327159,1765537929603,-500.0,0.0003863,30]
[398327160,1765537929612,-526.63,0.0003863,30]
[398327161,1765537929621,-500.0,0.0003863,30]
[398327162,1765537929631,-1577.6,0.0003863,30]
[398327163,1765537929640,-500.0,0.0003863,30]
[398327164,1765537929649,-500.0,0.0003863,30]
[398327165,1765537929659,-500.0,0.0003863,30]
[398327166,1765537929668,-500.0,0.0003863,30]
[398327167,1765537929678,-1132.8,0.0003863,30]
[398327168,1765537929687,-570.07,0.0003863,30]
[398327169,1765537929697,-705.52,0.0003863,30]
[398327170,1765537929706,-961.9,0.0003863,30]
[398327171,1765537929716,-500.0,0.0003863,30]
[398327172,1765537929725,-735.82,0.0003863,30]
[398327173,1765537929735,-749.42,0.0003863,30]
[398327174,1765537929744,-1191.88,0.0003863,30]
[398327175,1765537929754,-522.47,0.0003863,30]
[398327176,1765537929763,-632.21134222,0.0003863,30]
[398327177,1765537929773,-4298.84,0.0003863,30]
[398327178,1765537929782,-974.16,0.0003863,30]
[398327179,1765537929792,-500.0,0.0003863,30]
[398327180,1765537929802,-1095.96,0.0003863,30]
[398327181,1765537929811,-500.0,0.0003863,30]
[398327182,1765537929820,-500.18947227,0.0003863,30]
[398327183,1765537929833,-500.0,0.0003863,30]
[398327184,1765537929842,-500.0,0.0003863,30]
[398327185,1765537929852,-500.0,0.0003863,30]
[398327186,1765537929861,-938.71,0.0003863,30]
[398327187,1765537929871,-1397.58,0.0003863,30]
[398327188,1765537929880,-500.0,0.0003863,30]
[398327189,1765537929890,-500.0,0.0003863,30]
[398327190,1765537929899,-500.0,0.0003863,30]
[398327191,1765537929909,-500.0,0.0003863,30]
[398327192,1765537929918,-2368.57,0.0003863,30]
[398327193,1765537929929,-500.0,0.0003863,30]
[398327194,1765537929939,-500.0,0.0003863,30]
[398327195,1765537929948,-500.0,0.0003863,30]
[398327196,1765537929957,-500.0,0.0003863,30]
[398327197,1765537929967,-508.91,0.0003863,30]
[398327198,1765537929977,-500.0,0.0003863,30]
[398327199,1765537929986,-500.0,0.0003863,30]
[398327200,1765537929996,-1181.83,0.0003863,30]
[398327201,1765537930005,-368.63807442,0.0003863,30]
[398327202,1765537930015,-500.0,0.0003863,30]
[398327203,1765537930024,-501.04252307,0.0003863,30]
[398327204,1765537930034,-2107.36,0.0003863,30]
[398327205,1765537930044,-500.0,0.0003863,30]
[398327206,1765537930053,-591.32,0.0003863,30]
[398327207,1765537930063,-500.0,0.0003863,30]
[398327208,1765537930072,-500.0,0.0003863,30]
[398327209,1765537930082,-1407.05,0.0003863,30]
[398327210,1765537930091,-500.0,0.0003863,30]
[398327211,1765537930101,-500.0,0.0003863,30]
[398327212,1765537930110,-500.0,0.0003863,30]
[398327213,1765537930122,-500.0,0.0003863,30]
[398327214,1765537930132,-500.0,0.0003863,30]
[398327215,1765537930141,-712.24,0.0003863,30]
[398327216,1765537930161,-500.0,0.0003863,30]
[398327217,1765537930171,-500.0,0.0003863,30]
[398327218,1765537930181,-1000.77,0.0003863,30]
[398327219,1765537930190,-500.0,0.0003863,30]
[398327220,1765537930200,-500.0,0.0003863,30]
[398327221,1765537930210,-500.0,0.0003863,30]
[398327222,1765537930219,-500.0,0.0003863,30]
[398327223,1765537930229,-500.0,0.0003863,30]
[398327224,1765537930239,-500.0,0.0003863,30]
[398327225,1765537930248,-500.0,0.0003863,30]
[398327226,1765537930258,-578.91,0.0003863,30]
[398327227,1765537930267,-1480.01,0.0003863,30]
[398327228,1765537930276,-796.45,0.0003863,30]
[398327229,1765537930287,-1121.9,0.0003863,30]
[398327230,1765537930296,-538.64,0.0003863,30]
[398327231,1765537930306,-875.09,0.0003863,30]
[398327232,1765537930315,-500.0,0.0003863,30]
[398327233,1765537930325,-500.0,0.0003863,30]
[398327234,1765537930334,-500.0,0.0003863,30]
[398327235,1765537930343,-1342.46,0.0003863,30]
[398327236,1765537930353,-500.0,0.0003863,30]
[398327237,1765537930363,-500.0,0.0003863,30]
[398327238,1765537930372,-500.0,0.0003863,30]
[398327239,1765537930382,-500.0,0.0003863,30]
[398327240,1765537930391,-500.0,0.0003863,30]
[398327241,1765537930401,-500.0,0.0003863,30]
[398327242,1765537930410,-500.0,0.0003863,30]
[398327243,1765537930420,-500.0,0.0003863,30]
[398327244,1765537930429,-500.0,0.0003863,30]
[398327245,1765537930439,-500.0,0.0003863,30]
[398327246,1765537930448,-551.7,0.0003863,30]
[398327247,1765537930458,-500.0,0.0003863,7]
[398327248,1765537930467,-500.0,0.0003863,30]
[398327249,1765537930477,-500.0,0.0003863,30]
[398327250,1765537930487,-500.0,0.0003863,30]
[398327251,1765537930497,-500.0,0.0003863,30]
[398327252,1765537930507,-891.01,0.0003863,30]
[398327253,1765537930516,-500.0,0.0003863,30]
[398327254,1765537930526,-500.0,0.0003863,30]
[398327255,1765537930536,-1631.76,0.0003863,30]
[398327256,1765537930545,-500.0,0.0003863,30]
[398327257,1765537930555,-511.07,0.0003863,30]
[398327258,1765537930568,-500.0,0.0003863,30]
[398327259,1765537930578,-500.0,0.0003863,30]
[398327260,1765537930588,-935.63,0.0003863,30]
[398327261,1765537930599,-500.0,0.0003863,30]
[398327262,1765537930608,-500.0,0.0003863,30]
[398327263,1765537930619,-504.78693248,0.0003863,30]
[398327264,1765537930628,-500.0,0.0003863,30]
[398327265,1765537930638,-1213.86,0.0003863,30]
[398327266,1765537930648,-500.0,0.0003863,30]
[398327267,1765537930658,-713.52,0.0003863,30]
[398327268,1765537930667,-500.0,0.0003863,30]
[398327269,1765537930677,-999.59,0.0003863,30]
[398327270,1765537930687,-500.0,0.0003863,30]
[398327271,1765537930701,-500.0,0.0003863,30]
[398327272,1765537930711,-762.67,0.0003863,30]
[398327273,1765537930721,-500.0,0.0003863,30]
[398327274,1765537930730,-500.0,0.0003863,30]
[398327275,1765537930741,-500.0,0.0003863,30]
[398327276,1765537930751,-922.65,0.0003863,30]
[398327277,1765537930760,-502.12342114,0.0003863,30]
[398327278,1765537930770,-500.0,0.0003863,30]
[398327279,1765537930780,-1139.73,0.0003863,30]
[398327280,1765537930790,-500.0,0.0003863,30]
[398327281,1765537930800,-960.26,0.0003863,30]
[398327282,1765537930810,-500.0,0.0003863,30]
[398327283,1765537930819,-921.07,0.0003863,30]
[398327284,1765537930833,-824.08,0.0003863,30]
[398327285,1765537930843,-500.0,0.0003863,30]
[398327286,1765537930853,-500.0,0.0003863,30]
[398327287,1765537930863,-500.0,0.0003863,30]
[398327288,1765537930872,-500.0,0.0003863,30]
[398327289,1765537930882,-1836.88,0.0003863,30]
[398327290,1765537930892,-500.0,0.0003863,30]
[398327291,1765537930910,-403.31047081,0.0003863,30]
[398327292,1765537930921,-500.0,0.0003863,30]
[398327293,1765537930930,-500.0,0.0003863,30]
[398327294,1765537930940,-500.0,0.0003863,30]
[398327295,1765537930950,-500.0,0.0003863,30]
[398327296,1765537930959,-500.0,0.0003863,30]
[398327297,1765537930969,-807.06,0.0003863,30]
[398327298,1765537930979,-500.0,0.0003863,30]
[398327299,1765537930988,-1304.95,0.0003863,30]
[398327300,1765537930999,-299.69353467,0.0003863,30]
[398327301,1765537931009,-504.09395603,0.0003863,30]
[398327302,1765537931020,-1005.91,0.0003863,30]
[398327303,1765537931030,-500.0,0.0003863,30]
[398327304,1765537931040,-500.0,0.0003863,30]
[398327305,1765537931051,-1051.07,0.0003863,30]
[398327306,1765537931064,-500.0,0.0003863,30]
[398327307,1765537931075,-500.0,0.0003863,30]
[398327308,1765537931085,-500.0,0.0003863,30]
[398327309,1765537931095,-929.4,0.0003863,30]
[398327310,1765537931105,-500.0,0.0003863,30]
[398327311,1765537931115,-500.0,0.0003863,30]
[398327312,1765537931125,-500.0,0.0003863,30]
[398327313,1765537931135,-500.0,0.0003863,30]
[398327314,1765537931144,-331.01688263,0.0003863,30]
[398327315,1765537931154,-500.0,0.0003863,30]
[398327316,1765537931164,-503.03616624,0.0003863,30]
[398327317,1765537931174,-500.0,0.0003863,30]
[398327318,1765537931488,-500.0,0.0003863,30]
[398327319,1765537931497,-500.0,0.0003863,30]
[398327320,1765537931507,-500.0,0.0003863,30]
[398327321,1765537931516,-500.0,0.0003863,30]
[398327322,1765537931525,-500.0,0.0003863,30]
[398327323,1765537931535,-621.09,0.0003863,30]
[398327324,1765537931544,-500.0,0.0003863,30]
[398327325,1765537931554,-500.0,0.0003863,30]
[398327326,1765537931563,-500.0,0.0003863,30]
[398327327,1765537931572,-1874.12,0.0003863,30]
[398327328,1765537931582,-500.0,0.0003863,30]
[398327329,1765537931591,-500.0,0.0003863,30]
[398327330,1765537931600,-500.0,0.0003863,30]
[398327331,1765537931610,-500.0,0.0003863,30]
[398327332,1765537931619,-500.0,0.0003863,30]
[398327333,1765537931628,-500.0,0.0003863,30]
[398327334,1765537931638,-521.95,0.0003863,30]
[398327335,1765537931647,-500.0,0.0003863,30]
[398327336,1765537931658,-500.0,0.0003863,30]
[398327337,1765537931667,-500.0,0.0003863,30]
[398327338,1765537931676,-500.0,0.0003863,30]
[398327339,1765537931686,-500.0,0.0003863,25]
[398327340,1765537931695,-500.0,0.0003863,30]
[398327341,1765537931705,-578.01,0.0003863,30]
[398327342,1765537931714,-500.0,0.0003863,12]
[398327343,1765537931729,-500.0,0.0003863,30]
[398327344,1765537931739,-500.0,0.0003863,30]
[398327345,1765537931748,-500.0,0.0003863,30]
[398327346,1765537931758,-701.87,0.0003863,30]
[398327347,1765537931767,-500.0,0.0003863,30]
[398327348,1765537931777,-667.26,0.0003863,7]
[398327349,1765537931787,-532.36,0.0003863,30]
[398327350,1765537931797,-500.0,0.0003863,30]
[398327351,1765537931807,-500.0,0.0003863,30]
[398327352,1765537931816,-890.33,0.0003863,30]
[398327353,1765537931830,-500.0,0.0003863,30]
[398327354,1765537931840,-619.34,0.0003863,30]
[398327355,1765537931850,-500.0,0.0003863,30]
[398327356,1765537931860,-500.0,0.0003863,30]
[398327357,1765537931869,-500.0,0.0003863,30]
[398327358,1765537931878,-666.66,0.0003863,30]
[398327359,1765537931888,-500.0,0.0003863,30]
[398327360,1765537931898,-679.95,0.0003863,30]
[398327361,1765537931908,-500.0,0.0003863,30]
[398327362,1765537931918,-500.0,0.0003863,30]
[398327363,1765537931928,-846.97,0.0003863,30]
[398327364,1765537931937,-1622.6,0.0003863,30]
[398327365,1765537931947,-500.0,0.0003863,30]
[398327366,1765537931958,-500.0,0.0003863,30]
[398327367,1765537931968,-500.0,0.0003863,30]
[398327368,1765537931979,-500.0,0.0003863,30]
[398327369,1765537931988,-500.0,0.0003863,30]
[398327370,1765537931998,-500.0,0.0003863,30]
[398327371,1765537932008,-500.0,0.0003863,30]
[398327372,1765537932019,-500.0,0.0003863,30]
[398327373,1765537932028,-1634.93,0.0003863,30]
[398327374,1765537932038,-1372.09,0.0003863,30]
[398327375,1765537932047,-867.67,0.0003863,30]
[398327376,1765537932056,-500.0,0.0003863,30]
[398327377,1765537932066,-500.0,0.0003863,30]
[398327378,1765537932084,-500.0,0.0003863,30]
[398327379,1765537932094,-500.0,0.0003863,30]
[398327380,1765537932103,-500.0,0.0003863,30]
[398327381,1765537932113,-500.0,0.0003863,30]
[398327382,1765537932126,-500.0,0.0003863,30]
[398327383,1765537932139,-630.63,0.0003863,30]
[398327384,1765537932150,-500.0,0.0003863,30]
[398327385,1765537932159,-500.0,0.0003863,30]
[398327386,1765537932169,-1368.81,0.0003863,30]
[398327387,1765537932179,-500.0,0.0003863,30]
[398327388,1765537932189,-500.0,0.0003863,30]
[398327389,1765537932199,-500.0,0.0003863,30]
[398327390,1765537932209,-626.64,0.0003863,30]
[398327391,1765537932218,-500.0,0.0003863,30]
[398327392,1765537932227,-500.0,0.0003863,30]
[398327393,1765537932237,-500.0,0.0003863,30]
[398327394,1765537932246,-500.0,0.0003863,30]
[398327395,1765537932256,-500.0,0.0003863,30]
[398327396,1765537932265,-522.28662781,0.0003863,30]
[398327397,1765537932275,-1191.7,0.0003863,30]
[398327398,1765537932285,-500.0,0.0003863,30]
[398327399,1765537932296,-2251.55,0.0003863,30]
[398327400,1765537932305,-500.0,0.0003863,30]
[398327401,1765537932319,-1877.84,0.0003863,30]
[398327402,1765537932329,-500.0,0.0003863,30]
[398327403,1765537932339,-554.25,0.0003863,30]
[398327404,1765537932348,-500.0,0.0003863,30]
[398327405,1765537932358,-500.0,0.0003863,15]
[398327406,1765537932368,-500.0,0.0003863,30]
[398327407,1765537932378,-500.0,0.0003863,30]
[398327408,1765537932387,-500.0,0.0003863,30]
[398327409,1765537932396,-500.0,0.0003863,30]
[398327410,1765537932405,-1066.72,0.0003863,30]
[398327411,1765537932415,-500.0,0.0003863,30]
[398327412,1765537932424,-500.0,0.0003863,30]
[398327413,1765537932433,-500.0,0.0003863,30]
[398327414,1765537932443,-500.0,0.0003863,30]
[398327415,1765537932452,-500.0,0.0003863,30]
[398327416,1765537932461,-620.95,0.0003863,30]
[398327417,1765537932471,-500.0,0.0003863,30]
[398327418,1765537932480,-500.0,0.0003863,30]
[398327419,1765537932490,-1109.61,0.0003863,30]
[398327420,1765537932499,-500.0,0.0003863,30]
[398327421,1765537932509,-500.0,0.0003863,30]
[398327422,1765537932518,-2254.72,0.0003863,30]
[398327423,1765537932528,-500.0,0.0003863,30]
[398327424,1765537932537,-500.0,0.0003863,30]
[398327425,1765537932546,-500.0,0.0003863,30]
[398327426,1765537932555,-500.0,0.0003863,30]
[398327427,1765537932565,-500.0,0.0003863,30]
[398327428,1765537932574,-500.0,0.0003863,30]
[398327429,1765537932583,-1451.06,0.0003863,30]
[398327430,1765537932593,-500.0,0.0003863,30]
[398327431,1765537932603,-500.0,0.0003863,30]
[398327432,1765537932613,-524.1,0.0003863,30]
[398327433,1765537932623,-500.0,0.0003863,30]
[398327434,1765537932632,-500.0,0.0003863,30]
[398327435,1765537932642,-512.7088509,0.0003863,30]
[398327436,1765537932651,-535.99,0.0003863,30]
[398327437,1765537932660,-1647.96,0.0003863,30]
[398327438,1765537932669,-500.0,0.0003863,30]
[398327439,1765537932679,-500.0,0.0003863,30]
[398327440,1765537932688,-500.0,0.0003863,30]
[398327441,1765537932701,-500.0,0.0003863,30]
[398327442,1765537932711,-565.97689334,0.0003863,30]
[398327443,1765537932720,-1607.35,0.0003863,30]
[398327444,1765537932730,-500.0,0.0003863,30]
[398327445,1765537932739,-500.0,0.0003863,30]
[398327446,1765537932749,-504.61369015,0.0003863,30]
[398327447,1765537932758,-500.0,0.0003863,30]
[398327448,1765537932768,-1890.33,0.0003863,30]
[398327449,1765537932777,-500.0,0.0003863,30]
[398327450,1765537932787,-702.35,0.0003863,30]
[398327451,1765537932796,-500.0,0.0003863,30]
[398327452,1765537932805,-1448.32,0.0003863,30]
[398327453,1765537932815,-1632.19,0.0003863,30]
[398327454,1765537932828,-500.0,0.0003863,30]
[398327455,1765537932838,-500.0,0.0003863,30]
[398327456,1765537932847,-876.83,0.0003863,30]
[398327457,1765537932857,-832.79,0.0003863,30]
[398327458,1765537932867,-500.0,0.0003863,30]
[398327459,1765537932876,-500.0,0.0003863,30]
[398327460,1765537932886,-500.0,0.0003863,30]
[398327461,1765537932896,-623.5,0.0003863,30]
[398327462,1765537932905,-500.0,0.0003863,30]
[398327463,1765537932915,-500.0,0.0003863,30]
[398327464,1765537932925,-2761.6,0.0003863,30]
[398327465,1765537932935,-500.0,0.0003863,30]
[398327466,1765537932944,-604.56,0.0003863,30]
[398327467,1765537932954,-769.61,0.0003863,30]
[398327468,1765537932963,-1014.43,0.0003863,30]
[398327469,1765537932973,-500.0,0.0003863,30]
[398327470,1765537932983,-500.0,0.0003863,30]
[398327471,1765537932993,-500.0,0.0003863,30]
[398327472,1765537933003,-500.0,0.0003863,30]
[398327473,1765537933017,-500.0,0.0003863,30]
[398327474,1765537933027,-500.0,0.0003863,30]
[398327475,1765537933036,-500.0,0.0003863,30]
[398327476,1765537933046,-799.32,0.0003863,30]
[398327477,1765537933055,-977.53,0.0003863,30]
[398327478,1765537933065,-500.0,0.0003863,30]
[398327479,1765537933075,-500.0,0.0003863,30]
[398327480,1765537933086,-500.0,0.0003863,30]
[398327481,1765537933096,-1062.18,0.0003863,30]
[398327482,1765537933105,-500.0,0.0003863,30]
[398327483,1765537933115,-882.68,0.0003863,30]
[398327484,1765537933125,-502.48,0.0003863,30]
[398327485,1765537933135,-500.0,0.0003863,30]
[398327486,1765537933145,-500.0,0.0003863,30]
[398327487,1765537933155,-500.0,0.0003863,30]
[398327488,1765537933165,-500.0,0.0003863,30]
[398327489,1765537933175,-500.0,0.0003863,30]
[398327490,1765537933187,-500.0,0.0003863,30]
[398327491,1765537933203,-907.2,0.0003863,30]
[398327492,1765537933218,-500.0,0.0003863,30]
[398327493,1765537933228,-566.21,0.0003863,30]
[398327494,1765537933238,-500.0,0.0003863,30]
[398327495,1765537933247,-500.0,0.0003863,30]
[398327496,1765537933257,-1677.04,0.0003863,30]
[398327497,1765537933266,-786.93,0.0003863,30]
[398327498,1765537933276,-500.0,0.0003863,30]
[398327499,1765537933285,-1523.05,0.0003863,30]
[398327500,1765537933295,-500.0,0.0003863,30]
[398327501,1765537933304,-500.0,0.0003863,30]
[398327502,1765537933314,-500.0,0.0003863,30]
[398327503,1765537933324,-623.75,0.0003863,30]
[398327504,1765537933334,-646.21,0.0003863,30]
[398327505,1765537933344,-172.90517164,0.0003863,30]
[398327506,1765537933354,-500.0,0.0003863,30]
[398327507,1765537933363,-500.0,0.0003863,30]
[398327508,1765537933372,-500.0,0.0003863,30]
[398327509,1765537933382,-850.56,0.0003863,30]
[398327510,1765537933392,-506.59,0.0003863,30]
[398327511,1765537933402,-503.3009523,0.0003863,30]
[398327512,1765537933413,-2457.1,0.0003863,30]
[398327513,1765537933423,-1824.58,0.0003863,30]
[398327514,1765537933432,-500.0,0.0003863,30]
[398327515,1765537933441,-593.38,0.0003863,30]
[398327516,1765537933450,-500.0,0.0003863,30]
[398327517,1765537933460,-500.0,0.0003863,30]
[398327518,1765537933469,-500.0,0.0003863,30]
[398327519,1765537933478,-500.0,0.0003863,30]
[398327520,1765537933487,-2498.97,0.0003863,30]
[398327521,1765537933496,-937.73,0.0003863,30]
[398327522,1765537933506,-500.0,0.0003863,30]
[398327523,1765537933515,-500.0,0.0003863,30]
[398327524,1765537933525,-500.0,0.0003863,30]
[398327525,1765537933534,-500.0,0.0003863,30]
[398327526,1765537933543,-7728.61,0.0003863,30]
[398327527,1765537933553,-500.0,0.0003863,30]
[398327528,1765537933562,-500.0,0.0003863,30]
[398327529,1765537933571,-500.0,0.0003863,30]
[398327530,1765537933581,-502.95316624,0.0003863,30]
[398327531,1765537933590,-500.0,0.0003863,30]
[398327532,1765537933599,-500.0,0.0003863,30]
[398327533,1765537933609,-521.3,0.0003863,30]
[398327534,1765537933618,-5162.44,0.0003863,30]
[398327535,1765537933628,-203.02705928,0.0003863,30]
[398327536,1765537933637,-500.0,0.0003863,30]
[398327537,1765537933647,-2045.54,0.0003863,30]
[398327538,1765537933656,-4512.65,0.0003863,30]
[398327539,1765537933665,-500.0,0.0003863,30]
[398327540,1765537933675,-500.0,0.0003863,30]
[398327541,1765537933684,-2044.49,0.0003863,30]
[398327542,1765537933693,-500.0,0.0003863,30]
[398327543,1765537933702,-500.0,0.0003863,30]
[398327544,1765537933712,-803.09,0.0003863,30]
[398327545,1765537933722,-500.0,0.0003863,30]
[398327546,1765537933731,-500.0,0.0003863,30]
[398327547,1765537933740,-500.0,0.0003863,30]
[398327548,1765537933750,-500.0,0.0003863,30]
[398327549,1765537933759,-880.62,0.0003863,30]
[398327550,1765537933770,-500.0,0.0003863,30]
[398327551,1765537933779,-1055.54,0.0003863,30]
[398327552,1765537933789,-500.0,0.0003863,30]
[398327553,1765537933798,-1170.58,0.0003863,30]
[398327554,1765537933808,-2563.76,0.0003863,30]
[398327555,1765537933817,-3132.56,0.0003863,30]
[398327556,1765537933828,-500.0,0.0003863,30]
[398327557,1765537933838,-647.8,0.0003863,30]
[398327558,1765537933847,-500.0,0.0003863,30]
[398327559,1765537933865,-920.56,0.0003863,30]
[398327560,1765537933876,-1267.04,0.0003863,30]
[398327561,1765537933886,-500.0,0.0003863,30]
[398327562,1765537933895,-1034.08,0.0003863,30]
[398327563,1765537933905,-423.73400856,0.0003863,30]
[398327564,1765537933915,-500.0,0.0003863,30]
[398327565,1765537933924,-500.0,0.0003863,30]
[398327566,1765537933933,-500.0,0.0003863,30]
[398327567,1765537933943,-500.0,0.0003863,30]
[398327568,1765537933952,-500.0,0.0003863,30]
[398327569,1765537933961,-500.0,0.0003863,30]
[398327570,1765537933971,-500.0,0.0003863,30]
[398327571,1765537933980,-500.0,0.0003863,30]
[398327572,1765537933990,-636.17,0.0003863,30]
[398327573,1765537934000,-534.23,0.0003863,30]
[398327574,1765537934009,-550.00876623,0.0003863,30]
[398327575,1765537934019,-9205.7,0.0003863,30]
[398327576,1765537934029,-500.0,0.0003863,30]
[398327577,1765537934039,-2487.95,0.0003863,14]
[398327578,1765537934048,-852.0,0.0003863,30]
[398327579,1765537934058,-1627.24,0.0003863,30]
[398327580,1765537934067,-500.0,0.0003863,30]
[398327581,1765537934077,-500.0,0.0003863,30]
[398327582,1765537934088,-9937.58,0.0003863,30]
[398327583,1765537934098,-709.82,0.0003863,30]
[398327584,1765537934108,-500.0,0.0003863,30]
[398327585,1765537934117,-1228.02,0.0003863,30]
[398327586,1765537934127,-727.84,0.0003863,30]
[398327587,1765537934137,-500.0,0.0003863,30]
[398327588,1765537934146,-500.0,0.0003863,30]
[398327589,1765537934156,-500.0,0.0003863,30]
[398327590,1765537934166,-2584.59,0.0003863,30]
[398327591,1765537934176,-3111.31,0.0003863,30]
[398327592,1765537934186,-938.28,0.0003863,30]
[398327593,1765537934197,-500.0,0.0003863,30]
[398327594,1765537934206,-500.0,0.0003863,30]
[398327595,1765537934216,-500.0,0.0003863,30]
[398327596,1765537934225,-724.94,0.0003863,30]
[398327597,1765537934235,-2254.56,0.0003863,30]
[398327598,1765537934244,-922.78,0.0003863,30]
[398327599,1765537934253,-500.0,0.0003863,30]
[398327600,1765537934263,-899.02,0.0003863,30]
[398327601,1765537934272,-533.17926294,0.0003863,30]
[398327602,1765537934282,-500.0,0.0003863,30]